bitfinex-derivatives/quotes_ETHF0:USTF0_20250224
["timestamp","ask_amount","ask_price","bid_price","bid_amount"]
[1740361097147,3.2078,2796.0,2795.6,25.5088]
[1740361097342,3.2078,2796.3,2795.6,25.5088]
[1740361097545,0.71524,2796.2,2795.7,40.8]
[1740361097743,0.7153,2796.0,2795.8,2.462]
[1740361097944,0.71526,2796.2,2795.8,2.462]
[1740361098150,3.2078,2796.3,2795.9,0.5264]
[1740361098351,0.71529,2796.0,2795.9,0.5264]
[1740361098651,0.71531,2795.9,2795.8,2.462]
[1740361101251,3.2078,2796.0,2795.7,40.8]
[1740361101448,3.2078,2796.0,2795.8,2.462]
[1740361101650,0.71531,2795.9,2795.8,2.462]
[1740361101843,3.2078,2796.0,2795.8,2.462]
[1740361102451,0.71531,2795.9,2795.8,2.462]
[1740361103249,0.71537,2795.7,2795.6,19.839]
[1740361103552,3.92317,2795.7,2795.6,22.301]
[1740361104252,0.71547,2795.3,2795.2,0.00536769]
[1740361104552,3.92327,2795.3,2795.2,2.46736769]
[1740361108049,3.2078,2795.3,2795.2,2.46736769]
[1740361109155,3.92327,2795.3,2795.2,2.46736769]
[1740361109954,3.92327,2795.3,2795.2,0.00536769]
[1740361110157,3.92327,2795.3,2795.2,2.46736769]
[1740361111155,3.92327,2795.3,2795.2,0.00536769]
[1740361111355,0.7156,2794.8,2794.7,19.833]
[1740361111552,0.7156,2794.8,2794.7,22.295]
[1740361111756,0.7156,2794.8,2794.7,19.833]
[1740361111957,0.7156,2794.8,2794.7,22.295]
[1740361112158,1.2723,2794.8,2794.7,22.295]
[1740361113054,1.2723,2794.8,2794.7,19.833]
[1740361113262,1.2723,2794.8,2794.7,22.295]
[1740361114856,1.2723,2794.8,2794.5,0.00536769]
[1740361114857,0.5567,2794.8,2794.5,0.00536769]
[1740361115051,3.92345,2794.6,2794.5,0.00536769]
[1740361115258,3.92345,2794.6,2794.5,2.46736769]
[1740361117259,3.92345,2794.6,2794.5,0.00536769]
[1740361118566,9.92345,2794.6,2794.5,7.69e-06]
[1740361119666,3.92345,2794.6,2794.5,7.69e-06]
[1740361122558,3.2078,2794.6,2794.5,7.69e-06]
[1740361122760,3.2078,2794.6,2794.5,3.17767769]
[1740361122970,3.92345,2794.6,2794.5,2.46200769]
[1740361125968,3.2078,2794.6,2794.5,2.46200769]
[1740361126169,0.00536769,2795.0,2794.5,2.46200769]
[1740361126170,3.21316769,2795.0,2794.5,2.46200769]
[1740361126364,0.00536769,2795.0,2794.9,0.71557]
[1740361126564,0.00536769,2795.0,2794.9,2.462]
[1740361127571,0.72090769,2795.0,2794.9,2.462]
[1740361127973,0.00536769,2795.0,2794.9,2.462]
[1740361132570,0.00536769,2795.0,2794.9,3.17757]
[1740361132771,0.00536769,2795.0,2794.9,2.462]
[1740361133066,0.00536769,2795.0,2794.9,2.9792]
[1740361137974,0.72090769,2795.0,2794.9,2.9792]
[1740361138176,0.00536769,2795.0,2794.9,2.9792]
[1740361139378,0.00536769,2795.0,2794.9,43.7792]
[1740361141480,0.00536769,2795.0,2794.9,50.49477]
[1740361141680,3.2078,2795.7,2795.1,0.71551]
[1740361142175,3.92318,2795.7,2795.0,0.71553]
[1740361142779,0.00536,2795.6,2795.1,0.71551]
[1740361142986,0.00536,2795.6,2795.2,3.2078]
[1740361143182,0.71544,2795.4,2795.3,2.461]
[1740361143378,0.71543,2795.5,2795.3,2.461]
[1740361143580,0.71544,2795.4,2795.3,2.461]
[1740361144181,0.71554,2795.1,2794.9,41.3172]
[1740361144384,3.2078,2795.4,2795.0,2.461]
[1740361144881,3.2078,2795.1,2794.8,1.0634]
[1740361145082,0.71557,2794.9,2794.8,1.0634]
[1740361145279,3.2078,2795.1,2794.8,3.5244]
[1740361145685,0.71557,2794.9,2794.8,1.0634]
[1740361146188,0.71557,2794.9,2794.8,3.5244]
[1740361146486,0.71557,2794.9,2794.8,2.9798]
[1740361147085,3.2078,2795.1,2794.8,2.9798]
[1740361147489,0.71557,2794.9,2794.8,2.9798]
[1740361148087,3.2078,2795.1,2794.8,2.9798]
[1740361148490,3.92333,2795.1,2794.8,2.9798]
[1740361148685,3.2078,2795.1,2794.8,2.9798]
[1740361149391,3.2078,2795.1,2794.8,2.461]
[1740361149590,0.71557,2794.9,2794.8,2.461]
[1740361149991,3.2078,2795.1,2794.8,2.461]
[1740361150294,0.71557,2794.9,2794.8,2.461]
[1740361151187,0.7156,2794.8,2794.7,19.84]
[1740361151387,4.478,2794.8,2794.7,22.301]
[1740361154093,3.7624,2794.8,2794.7,22.301]
[1740361154791,4.478,2794.8,2794.7,22.301]
[1740361156688,4.478,2794.8,2794.7,19.84]
[1740361156884,4.478,2794.8,2794.7,22.301]
[1740361160693,0.71565,2794.6,2794.5,7.69e-06]
[1740361160891,0.71565,2794.6,2794.5,2.46100769]
[1740361161202,0.71565,2794.6,2794.5,7.69e-06]
[1740361162193,3.70265,2794.6,2794.5,7.69e-06]
[1740361162393,3.70265,2794.6,2793.9,19.841]
[1740361162394,1.78925,2794.5,2793.9,19.841]
[1740361162703,0.71598,2793.3,2793.2,2.461]
[1740361162889,3.92378,2793.3,2793.2,2.461]
[1740361163298,3.2078,2793.3,2793.2,2.461]
[1740361163597,3.92378,2793.3,2793.2,2.461]
[1740361164598,0.71601,2793.2,2793.0,0.00536769]
[1740361164792,3.2078,2793.3,2793.1,2.461]
[1740361165699,3.9238,2793.3,2793.1,2.461]
[1740361165900,0.71601,2793.2,2793.1,2.461]
[1740361166602,3.2078,2793.3,2793.1,2.461]
[1740361167307,0.54,2793.4,2793.1,2.461]
[1740361167603,3.9238,2793.3,2793.1,2.461]
[1740361168003,3.2078,2793.3,2793.1,2.461]
[1740361169304,0.00536769,2793.5,2793.2,3.732]
[1740361169500,0.00536769,2793.5,2793.4,0.71595]
[1740361170201,0.00536769,2793.5,2793.3,1.0623]
[1740361170699,0.00536769,2793.5,2793.4,0.71595]
[1740361171004,0.00536769,2793.5,2793.3,1.0623]
[1740361171403,0.71595,2793.4,2793.3,0.5168]
[1740361171699,3.21316769,2793.5,2793.3,2.9788]
[1740361171906,3.92909769,2793.5,2793.3,2.9788]
[1740361172107,3.92910769,2793.5,2793.3,2.9788]
[1740361172295,0.71595,2793.4,2793.3,2.9788]
[1740361172501,0.71595,2793.4,2793.3,2.462]
[1740361172694,3.21316769,2793.5,2793.2,0.5242]
[1740361172695,0.71598,2793.3,2793.2,0.5242]
[1740361172900,0.71598,2793.3,2793.2,2.461]
[1740361173309,0.00536769,2793.5,2793.2,2.461]
[1740361173511,0.00536769,2793.5,2793.3,0.5243]
[1740361173707,0.00536769,2793.5,2793.3,1.0769]
[1740361174002,0.00536769,2793.5,2793.3,1.79286]
[1740361174212,0.00536769,2793.5,2793.4,0.71595]
[1740361174404,0.00536769,2793.5,2793.3,1.0769]
[1740361174799,0.00536769,2793.5,2793.3,1.79287]
[1740361175005,0.00536769,2793.5,2793.3,1.0769]
[1740361175213,0.00536769,2793.5,2793.3,1.79287]
[1740361175607,0.00536769,2793.5,2793.3,1.0769]
[1740361177807,0.00536769,2793.5,2793.3,1.79288]
[1740361178412,0.00536769,2793.5,2793.4,0.71595]
[1740361178811,3.7657,2794.2,2793.4,0.71595]
[1740361179014,3.7657,2794.2,2793.3,1.0769]
[1740361179211,3.2078,2794.2,2793.8,0.71583]
[1740361179509,3.2078,2794.2,2793.9,3.5567]
[1740361179713,3.92348,2794.5,2793.9,3.5567]
[1740361179913,0.7157,2794.4,2793.9,3.5567]
[1740361180113,0.7157,2794.4,2794.0,40.8]
[1740361180309,3.2078,2794.5,2794.0,40.8]
[1740361180611,0.71572,2794.3,2794.0,40.8]
[1740361181112,3.2078,2794.2,2794.1,2.461]
[1740361181312,3.92356,2794.2,2794.1,2.461]
[1740361181512,0.7158,2794.0,2793.9,0.567]
[1740361181814,0.7158,2794.0,2793.9,2.461]
[1740361182517,0.71586,2793.8,2793.5,44.0078]
[1740361182814,0.5668,2793.9,2793.6,2.461]
[1740361183113,0.71588,2793.8,2793.6,2.461]
[1740361183316,0.71588,2793.7,2793.6,2.461]
[1740361183814,0.71586,2793.8,2793.6,2.461]
[1740361184016,0.71588,2793.7,2793.6,2.461]
[1740361184310,0.5668,2793.9,2793.6,2.461]
[1740361184508,0.71588,2793.7,2793.6,2.461]
[1740361185112,0.5668,2793.9,2793.6,2.461]
[1740361185314,0.71588,2793.7,2793.6,2.461]
[1740361185514,1.78964,2793.8,2792.7,6.87792]
[1740361185714,0.71599,2793.3,2793.1,2.9807]
[1740361185914,3.2078,2793.5,2793.1,43.7807]
[1740361186114,0.71601,2793.2,2793.1,43.7807]
[1740361186614,1.0948,2793.4,2793.1,43.7807]
[1740361186819,0.71601,2793.2,2793.1,43.261]
[1740361187219,1.6625,2793.4,2793.1,43.261]
[1740361187220,0.71599,2793.3,2793.1,43.261]
[1740361187519,3.92381,2793.2,2793.1,40.8]
[1740361187822,3.92381,2793.2,2793.1,43.261]
[1740361188114,3.2078,2793.2,2793.1,43.261]
[1740361189218,3.92381,2793.2,2793.1,43.261]
[1740361189815,3.92381,2793.2,2793.0,2.46636769]
[1740361189816,0.71603,2793.1,2793.0,2.46636769]
[1740361190019,3.2078,2793.2,2793.0,2.46636769]
[1740361190326,0.71603,2793.1,2793.0,2.46636769]
[1740361193719,3.2078,2793.2,2793.0,2.46636769]
[1740361195323,3.92383,2793.2,2793.0,2.46636769]
[1740361198219,3.2078,2793.2,2793.0,0.00536769]
[1740361198420,3.2078,2793.2,2792.1,2.954]
[1740361198624,3.2078,2792.7,2792.2,3.0317]
[1740361198820,3.92395,2792.7,2792.3,40.8]
[1740361199015,0.5606,2792.6,2792.3,40.8]
[1740361199419,0.5606,2792.6,2792.2,0.5707]
[1740361199627,0.5606,2792.6,2792.4,2.461]
[1740361200022,1.27677,2792.6,2792.4,2.461]
[1740361200322,0.5606,2792.6,2792.4,2.461]
[1740361204028,0.5606,2792.6,2792.2,41.37606769]
[1740361204228,3.92404,2792.3,2792.2,0.00536769]
[1740361204529,3.2078,2792.3,2792.2,2.46636769]
[1740361207327,4.3094,2792.6,2792.2,2.46636769]
[1740361209833,5.02558,2792.6,2792.2,2.46636769]
[1740361210036,4.3094,2792.6,2792.2,2.46636769]
[1740361210831,0.00536769,2792.7,2792.6,0.71616]
[1740361211034,0.00536769,2792.7,2792.6,3.17716]
[1740361211231,0.5689,2793.4,2792.6,43.261]
[1740361211535,3.2078,2793.5,2792.8,3.2078]
[1740361211738,3.92374,2793.5,2792.8,3.92389]
[1740361211929,3.92374,2793.5,2792.9,0.71608]
[1740361212132,3.2078,2793.5,2793.0,2.461]
[1740361212430,0.71597,2793.4,2793.0,3.0167]
[1740361212631,3.2078,2793.5,2793.0,3.0167]
[1740361213031,0.71599,2793.3,2793.0,3.0167]
[1740361213231,3.2078,2793.5,2792.8,3.2078]
[1740361213433,0.71606,2793.0,2792.9,2.461]
[1740361213824,1.26806,2793.0,2792.9,2.461]
[1740361215134,0.71613,2792.7,2792.6,2.461]
[1740361215335,3.2078,2792.7,2792.2,0.00536769]
[1740361215531,0.71623,2792.4,2792.3,2.461]
[1740361216136,1.78278,2792.6,2792.3,2.461]
[1740361216437,1.0666,2792.6,2792.3,2.461]
[1740361216633,0.7162,2792.5,2792.3,2.461]
[1740361217131,1.0666,2792.6,2792.3,2.461]
[1740361217332,0.7162,2792.5,2792.3,2.461]
[1740361217537,0.71621,2792.4,2792.3,2.461]
[1740361218036,0.7162,2792.5,2792.3,2.461]
[1740361218740,1.0666,2792.6,2792.3,2.461]
[1740361219038,0.71621,2792.5,2792.3,2.461]
[1740361219239,1.0666,2792.6,2792.3,2.461]
[1740361219541,0.71621,2792.4,2792.3,2.461]
[1740361219740,0.7162,2792.5,2792.3,2.461]
[1740361220039,3.92402,2792.4,2792.3,2.46]
[1740361220441,3.2078,2792.4,2792.2,0.00536769]
[1740361220637,3.2078,2792.4,2792.3,2.46]
[1740361220846,3.92402,2792.4,2792.3,2.46]
[1740361222141,0.71634,2791.9,2791.8,19.851]
[1740361222342,3.92414,2791.9,2791.8,22.311]
[1740361222633,3.92414,2791.9,2791.8,19.851]
[1740361222834,3.92414,2791.9,2791.8,22.311]
[1740361223036,3.92414,2791.9,2791.8,2.46]
[1740361223443,0.71639,2791.7,2791.6,0.00536769]
[1740361223646,0.71639,2791.7,2791.6,2.46536769]
[1740361224448,0.5401,2791.7,2791.6,2.46536769]
[1740361224741,1.25649,2791.7,2791.6,2.46536769]
[1740361225042,1.25361952,2791.7,2791.6,2.46536769]
[1740361227839,0.5476,2791.8,2791.6,2.46536769]
[1740361228940,1.26396,2791.8,2791.6,2.46536769]
[1740361229342,0.71639,2791.7,2791.6,2.46536769]
[1740361229543,0.5476,2791.8,2791.6,2.46536769]
[1740361229744,1.26398,2791.8,2791.6,2.46536769]
[1740361230043,0.5476,2791.8,2791.6,2.46536769]
[1740361230240,0.71639,2791.7,2791.6,2.46536769]
[1740361230441,1.26398,2791.8,2791.6,2.46536769]
[1740361230943,0.5476,2791.8,2791.6,2.46536769]
[1740361231145,1.26396,2791.8,2791.6,2.46536769]
[1740361231542,0.5476,2791.8,2791.6,2.46536769]
[1740361232150,3.2078,2791.9,2791.6,2.46536769]
[1740361233443,0.71639,2791.7,2791.6,2.46536769]
[1740361233849,3.2078,2791.9,2791.6,2.46536769]
[1740361234148,0.71637,2791.8,2791.6,2.46536769]
[1740361234637,3.2078,2791.9,2791.6,2.46536769]
[1740361234839,0.71639,2791.7,2791.6,2.46536769]
[1740361235647,1.25698,2791.8,2791.6,2.46536769]
[1740361237845,0.5406,2791.8,2791.6,2.46536769]
[1740361238646,3.2078,2791.9,2791.6,2.46536769]
[1740361238842,3.2078,2791.9,2791.7,0.5722]
[1740361239247,3.2078,2791.9,2791.8,0.5424]
[1740361239848,0.00536769,2792.1,2791.8,0.5424]
[1740361240049,0.00536769,2792.1,2791.9,0.5261]
[1740361240255,0.00536769,2792.1,2792.0,2.46]
[1740361243047,0.72165769,2792.1,2792.0,2.46]
[1740361243246,0.00536769,2792.1,2792.0,2.46]
[1740361243551,0.72165769,2792.1,2792.0,2.46]
[1740361243752,0.00536769,2792.1,2792.0,2.46]
[1740361244651,0.00536769,2792.1,2791.9,1.24243]
[1740361244842,0.00536769,2792.1,2792.0,2.46]
[1740361246454,0.00536769,2792.1,2792.0,3.17631]
[1740361246656,0.00536769,2792.1,2792.0,2.46]
[1740361246948,0.00536769,2792.1,2792.0,3.17631]
[1740361247155,0.00536769,2792.1,2792.0,2.46]
[1740361247555,0.72165769,2792.1,2792.0,2.46]
[1740361247748,1.28225769,2792.1,2792.0,2.46]
[1740361247947,0.71631,2792.0,2791.9,0.5261]
[1740361248156,3.92411,2792.0,2791.9,2.9851]
[1740361248345,4.45231,2792.0,2791.9,2.9851]
[1740361248549,3.736,2792.0,2791.9,2.9851]
[1740361248950,4.45231,2792.0,2791.9,2.9851]
[1740361250251,3.736,2792.0,2791.9,2.459]
[1740361250460,4.45231,2792.0,2791.9,2.459]
[1740361255065,3.736,2792.0,2791.9,2.459]
[1740361255355,4.45231,2792.0,2791.9,2.459]
[1740361256158,3.736,2792.0,2791.9,2.459]
[1740361256361,3.2078,2792.0,2791.9,2.459]
[1740361257856,3.92411,2792.0,2791.9,2.459]
[1740361260366,3.2078,2792.0,2791.9,2.459]
[1740361261266,0.00536769,2792.1,2791.9,2.459]
[1740361261462,0.00536769,2792.1,2792.0,1.0767]
[1740361262667,0.00536769,2792.1,2792.0,1.79301]
[1740361263069,0.00536769,2792.1,2792.0,1.0767]
[1740361263468,3.92945769,2792.1,2792.0,1.0767]
[1740361263668,0.00536769,2792.1,2792.0,1.0767]
[1740361264364,0.72165769,2792.1,2792.0,1.0767]
[1740361264566,0.00536769,2792.1,2792.0,1.0767]
[1740361267370,0.72165769,2792.1,2792.0,1.0767]
[1740361267670,0.72165769,2792.1,2791.9,2.459]
[1740361267671,0.71631,2792.0,2791.9,2.459]
[1740361267867,3.21316769,2792.1,2791.6,1.14916769]
[1740361268060,3.92418,2791.8,2791.7,2.458]
[1740361268857,3.2078,2791.8,2791.6,0.00536769]
[1740361269064,0.71639,2791.7,2791.6,0.00536769]
[1740361269272,1.23859,2791.7,2791.6,2.46336769]
[1740361269663,0.5222,2791.7,2791.6,2.46336769]
[1740361270473,0.5222,2791.7,2790.7,3.2078]
[1740361270676,3.2078,2791.3,2790.8,2.9869]
[1740361270970,3.9243,2791.3,2790.8,2.9869]
[1740361271168,3.2078,2791.3,2790.8,2.9869]
[1740361271366,0.71655,2791.1,2790.8,2.9869]
[1740361271673,0.71655,2791.1,2790.8,2.99226769]
[1740361271968,1.135,2791.2,2790.9,2.458]
[1740361272773,0.564,2791.2,2791.0,2.458]
[1740361273573,3.2078,2791.3,2791.0,2.458]
[1740361275276,0.5235,2791.5,2791.1,1.0976]
[1740361276271,3.7788,2791.6,2791.1,1.81414]
[1740361276573,3.70339,2791.7,2791.1,5.02193]
[1740361276776,0.71637,2791.8,2791.1,5.02193]
[1740361277173,3.2078,2791.9,2791.1,5.02193]
[1740361277379,0.71639,2791.7,2791.1,4.3054]
[1740361277579,0.71637,2791.8,2791.1,5.02193]
[1740361277784,3.2078,2791.9,2791.1,4.3054]
[1740361278078,3.2078,2791.9,2791.5,0.71644]
[1740361278278,0.00536769,2792.1,2791.6,4.0225]
[1740361278779,0.00536769,2792.1,2791.8,0.71635]
[1740361279177,0.00536769,2792.1,2792.0,3.2078]
[1740361279381,0.00536769,2792.1,2792.0,2.458]
[1740361279682,0.00536769,2792.1,2792.0,43.97431]
[1740361280276,0.00536769,2792.1,2792.0,43.258]
[1740361280888,3.92945769,2792.1,2792.0,2.457]
[1740361281678,3.21316769,2792.1,2792.0,2.457]
[1740361281978,3.21316769,2792.1,2791.6,1.0443]
[1740361282179,3.2078,2791.8,2791.2,3.2078]
[1740361282380,3.2078,2791.8,2790.8,0.00536769]
[1740361282381,3.2078,2791.5,2791.3,2.457]
[1740361282580,3.92424,2791.5,2791.4,2.457]
[1740361282783,3.2078,2791.5,2791.4,2.457]
[1740361282985,3.2078,2791.6,2791.4,2.457]
[1740361283179,0.71644,2791.5,2791.4,2.457]
[1740361283586,0.71648,2791.4,2791.0,0.571]
[1740361283779,0.71652,2791.2,2791.1,2.457]
[1740361283979,4.448,2791.3,2791.1,2.457]
[1740361284184,3.7315,2791.3,2791.1,2.457]
[1740361284788,0.5237,2791.3,2791.1,2.457]
[1740361284982,3.92422,2791.6,2790.8,0.00536769]
[1740361285179,3.2078,2791.3,2790.9,2.457]
[1740361285380,0.71652,2791.2,2790.9,2.457]
[1740361285783,3.9243,2791.3,2790.9,2.457]
[1740361286086,3.92431,2791.3,2790.9,2.457]
[1740361286386,3.2078,2791.3,2790.9,2.457]
[1740361286783,0.71657,2791.1,2790.9,2.457]
[1740361286989,3.7527,2791.3,2790.9,2.457]
[1740361287585,0.71656,2791.1,2790.9,2.457]
[1740361287784,1.27674,2791.2,2790.9,2.457]
[1740361287988,0.5602,2791.2,2790.9,2.457]
[1740361288589,1.27672,2791.2,2790.9,2.457]
[1740361290289,0.5602,2791.2,2790.9,2.457]
[1740361290487,3.2078,2791.0,2790.8,0.00536769]
[1740361290791,3.2078,2791.0,2790.9,2.457]
[1740361292094,1.27672,2791.2,2790.9,2.457]
[1740361292393,4.48452,2791.2,2790.9,2.457]
[1740361292892,3.768,2791.2,2790.9,2.457]
[1740361293291,0.71654,2791.1,2790.9,2.457]
[1740361293489,0.7166,2790.9,2790.8,0.00536769]
[1740361293697,3.768,2791.2,2790.8,2.46236769]
[1740361294290,3.9244,2790.9,2790.8,0.00536769]
[1740361294488,1.79158,2790.8,2789.9,0.5572]
[1740361294684,3.2078,2790.1,2789.9,2.457]
[1740361295089,0.516,2790.7,2789.9,2.457]
[1740361295090,3.2078,2790.4,2789.9,2.457]
[1740361295690,3.21316769,2790.4,2789.9,2.46236769]
[1740361295999,3.21316769,2790.4,2790.0,2.457]
[1740361296190,0.00536769,2790.4,2790.0,2.457]
[1740361296498,0.00536769,2790.4,2790.1,0.5551]
[1740361297689,0.00536769,2790.4,2790.2,0.71676]
[1740361297886,0.00536769,2790.4,2790.1,3.7629]
[1740361297887,0.00536769,2790.4,2790.3,2.457]
[1740361299285,0.00536769,2790.4,2790.3,3.17375]
[1740361299692,0.00536769,2790.4,2790.3,44.49885]
[1740361300090,3.2078,2791.0,2790.3,43.7821]
[1740361300393,3.92439,2791.0,2790.4,3.2078]
[1740361300603,3.2078,2791.0,2790.3,43.7821]
[1740361300897,3.92439,2791.0,2790.3,46.9899]
[1740361301202,3.92438,2791.0,2790.3,46.9899]
[1740361301390,0.00536769,2790.9,2790.3,46.9899]
[1740361301996,0.00536769,2790.9,2790.5,0.7167]
[1740361302393,0.00536769,2790.9,2790.6,0.5615]
[1740361302595,0.00536769,2790.9,2790.7,2.457]
[1740361305495,0.71672,2790.4,2790.3,41.3251]
[1740361305700,3.2078,2790.6,2790.3,2.9821]
[1740361305890,3.92449,2790.6,2790.3,2.9821]
[1740361306199,3.2078,2790.6,2790.0,0.5254]
[1740361306493,2.31718769,2790.9,2790.0,0.5254]
[1740361306494,3.2078,2790.3,2790.0,0.5254]
[1740361306699,3.2078,2790.3,2789.1,3.2078]
[1740361306998,3.2078,2789.7,2789.1,3.2078]
[1740361307191,3.2078,2789.4,2788.9,1.0887]
[1740361307391,3.2078,2789.1,2788.5,0.5254]
[1740361307597,3.2078,2789.1,2788.6,2.457]
[1740361307799,3.92488,2789.1,2788.6,2.457]
[1740361308099,3.2131775,2789.1,2788.6,2.4623775]
[1740361308291,0.71716,2788.7,2788.6,0.0053775]
[1740361309396,3.5539,2789.0,2788.6,2.4623775]
[1740361309699,0.0053775,2789.1,2788.7,0.5568]
[1740361309897,0.0053775,2789.1,2788.7,1.79595]
[1740361310098,0.0053775,2789.1,2788.7,1.0788]
[1740361310399,0.0053775,2789.1,2788.6,2.4623775]
[1740361310400,3.2131775,2789.1,2788.6,0.0053775]
[1740361310597,0.71711,2789.0,2788.7,2.457]
[1740361310796,0.71716,2788.7,2788.6,0.0053775]
[1740361313199,3.2078,2788.8,2788.6,0.0053775]
[1740361314006,0.71716,2788.7,2788.6,0.0053775]
[1740361315291,3.2131775,2789.1,2788.6,2.4633775]
[1740361315591,0.0053775,2789.1,2788.6,2.4633775]
[1740361315800,0.71711,2788.9,2788.6,2.4633775]
[1740361316101,0.71711,2789.0,2788.7,40.8]
[1740361316402,3.2131775,2789.1,2788.7,40.8]
[1740361316595,0.0053775,2789.1,2788.7,40.8]
[1740361317100,0.71708,2789.0,2788.7,40.8]
[1740361317300,3.2131775,2789.1,2788.7,40.8]
[1740361317493,3.9302375,2789.1,2788.6,2.4633775]
[1740361317699,3.9302475,2789.1,2788.6,2.4633775]
[1740361318000,3.9302575,2789.1,2788.6,2.4633775]
[1740361318197,3.92496,2788.7,2788.6,0.0053775]
[1740361318406,3.2078,2788.7,2788.6,0.0053775]
[1740361320200,0.0053775,2789.1,2788.6,0.0053775]
[1740361320705,0.0053775,2789.1,2789.0,0.71708]
[1740361320903,0.0053775,2789.1,2789.0,3.17508]
[1740361321297,3.2078,2789.6,2789.0,8.458]
[1740361321604,3.2078,2790.0,2789.3,3.92479]
[1740361321807,3.2078,2790.0,2789.4,3.17497]
[1740361322002,3.2078,2790.0,2789.4,2.458]
[1740361322196,3.2078,2790.5,2789.6,3.2078]
[1740361322393,3.2078,2790.8,2790.1,0.71678]
[1740361322609,0.0053775,2790.3,2790.2,3.0298]
[1740361324601,0.0053775,2790.3,2790.2,6.95438]
[1740361324809,3.2078,2791.2,2790.2,6.2376]
[1740361325000,3.2078,2791.2,2790.2,6.95436]
[1740361325204,0.71657,2791.1,2790.3,0.71674]
[1740361325403,3.92433,2791.2,2790.4,41.51671]
[1740361325705,3.2078,2791.2,2790.5,3.9245]
[1740361325916,0.0053775,2791.1,2790.6,2.457]
[1740361326609,0.0053775,2791.1,2790.7,0.71663]
[1740361326801,0.0053775,2791.1,2790.6,2.9962]
[1740361327306,6.84485409,2791.9,2790.8,3.2078]
[1740361327602,6.84485409,2791.9,2791.1,3.2078]
[1740361327805,6.84485409,2791.9,2791.3,0.71649]
[1740361327999,6.84485409,2791.9,2791.4,2.35461]
[1740361328200,6.84485409,2791.9,2791.4,6.27886]
[1740361328399,3.2078,2792.0,2791.4,6.27886]
[1740361328600,3.2078,2792.0,2791.5,0.71643]
[1740361328803,3.2078,2792.0,2791.4,5.5677875]
[1740361328999,3.2078,2792.0,2791.5,0.71643]
[1740361329307,3.2078,2792.6,2791.8,0.71636]
[1740361329607,3.2078,2792.6,2791.9,3.0198]
[1740361329806,0.71623,2792.4,2791.9,3.0198]
[1740361330302,0.71624,2792.3,2791.9,3.0198]
[1740361330508,3.7774,2792.6,2791.9,3.0198]
[1740361331499,3.2078,2792.6,2792.1,0.71628]
[1740361331810,3.2078,2792.6,2792.0,3.2078]
[1740361331998,3.2078,2792.6,2792.0,3.92411]
[1740361332404,3.2078,2792.6,2792.0,3.2078]
[1740361332710,3.2078,2793.0,2792.4,3.924]
[1740361332915,3.2078,2793.0,2792.5,2.456]
[1740361333416,3.7774,2793.3,2792.5,2.456]
[1740361333606,0.71603,2793.1,2792.5,2.456]
[1740361334011,4.49339,2793.3,2792.5,2.456]
[1740361334209,3.7774,2793.3,2792.5,2.456]
[1740361334506,3.2078,2793.0,2792.4,0.5642]
[1740361334706,3.92395,2792.7,2792.5,2.456]
[1740361334907,0.71626,2792.2,2791.9,0.5628]
[1740361335103,3.92402,2792.4,2791.9,0.5628]
[1740361335307,3.2078,2792.4,2791.9,0.5628]
[1740361335508,3.2078,2792.1,2791.3,19.874]
[1740361335710,0.71622,2792.4,2791.7,3.2078]
[1740361336012,3.2078,2792.6,2791.7,3.2078]
[1740361336312,0.71628,2792.2,2791.7,3.2078]
[1740361336504,3.2078,2792.6,2791.7,3.2078]
[1740361336709,3.2078,2792.3,2791.7,3.2078]
[1740361336910,0.7163,2792.1,2791.8,2.455]
[1740361337110,3.2078,2792.3,2791.8,2.455]
[1740361337411,0.71629,2792.1,2791.8,2.455]
[1740361337607,3.2078,2792.3,2791.8,2.455]
[1740361337807,3.2078,2792.0,2791.9,2.455]
[1740361338012,3.92411,2792.0,2791.9,2.455]
[1740361339713,3.2078,2792.0,2791.7,2.455]
[1740361339909,0.71635,2791.9,2791.7,2.455]
[1740361340109,0.71636,2791.8,2791.7,2.455]
[1740361340612,0.71638,2791.8,2791.6,2.455]
[1740361340809,3.2078,2791.7,2791.6,2.455]
[1740361341208,3.2078,2792.1,2791.6,3.17142]
[1740361341512,2.987,2792.3,2791.6,2.455]
[1740361341813,2.987,2792.3,2791.7,42.03437]
[1740361342015,2.987,2792.3,2791.7,42.03438]
[1740361342607,3.70324,2792.3,2791.7,41.318]
[1740361342917,2.987,2792.3,2791.8,0.71635]
[1740361343415,2.987,2792.3,2791.7,41.318]
[1740361343616,2.987,2792.3,2791.7,42.03438]
[1740361343817,2.987,2792.3,2791.8,3.2078]
[1740361344113,0.5424,2792.9,2792.4,0.71621]
[1740361344306,0.5424,2792.9,2792.5,3.17117]
[1740361344510,0.5424,2792.9,2792.5,2.455]
[1740361344813,3.92387,2793.0,2792.5,2.455]
[1740361345013,3.2078,2793.0,2791.7,44.5258]
[1740361345207,0.7162,2792.5,2791.8,2.455]
[1740361345508,0.5593,2793.3,2791.3,23.0818]
[1740361345509,3.2078,2792.4,2791.3,23.0818]
[1740361345715,3.2078,2792.0,2791.6,2.455]
[1740361347614,0.71638,2791.8,2791.6,2.455]
[1740361347814,0.71635,2791.9,2791.6,2.455]
[1740361348010,3.2078,2792.0,2791.6,2.455]
[1740361348604,3.92419,2791.7,2791.6,2.455]
[1740361349113,2.89494,2792.3,2791.6,2.455]